[Event "GrandPrix_30.05"]
[Site "Chess.com"]
[Date "2020.05.30"]
[Round "2"]
[White "Korona_91"]
[Black "BMOchsner"]
[Result "0-1"]
[WhiteElo "2074"]
[BlackElo "2268"]
[TimeControl "600+2"]
[EndTime "8:53:47 PDT"]
[Termination "BMOchsner won by resignation"]

1. e4 {[%clk 0:10:01.9]} 1... e5 {[%clk 0:09:56.1]} 2. Nf3 {[%clk 0:10:02.1]}
2... Nc6 {[%clk 0:09:57.1]} 3. Bc4 {[%clk 0:10:02.7]} 3... Bc5 {[%clk
0:09:56.5]} 4. d3 {[%clk 0:10:00.3]} 4... Nf6 {[%clk 0:09:47.9]} 5. Nc3 {[%clk
0:09:59.6]} 5... d6 {[%clk 0:09:32.2]} 6. Bg5 {[%clk 0:09:58]} 6... h6 {[%clk
0:09:29.2]} 7. Bxf6 {[%clk 0:09:57.3]} 7... Qxf6 {[%clk 0:09:25.6]} 8. Nd5
{[%clk 0:09:58.4]} 8... Qd8 {[%clk 0:09:24.3]} 9. c3 {[%clk 0:09:57.8]} 9... a6
{[%clk 0:08:35.4]} 10. d4 {[%clk 0:09:56.5]} 10... Ba7 {[%clk 0:08:31.6]} 11.
dxe5 {[%clk 0:09:56.4]} 11... dxe5 {[%clk 0:08:27]} 12. Qe2 {[%clk 0:09:52.7]}
12... Be6 {[%clk 0:08:03.5]} 13. Rd1 {[%clk 0:09:50.7]} 13... Qc8 {[%clk
0:07:57.3]} 14. h3 {[%clk 0:08:50.9]} 14... Bc5 {[%clk 0:06:26.3]} 15. O-O
{[%clk 0:08:36.9]} 15... O-O {[%clk 0:06:18.4]} 16. b4 {[%clk 0:07:58.2]} 16...
Bd6 {[%clk 0:06:03.7]} 17. Rd2 {[%clk 0:07:48]} 17... b5 {[%clk 0:05:24.9]} 18.
Bb3 {[%clk 0:07:45]} 18... Qb7 {[%clk 0:05:12.3]} 19. Nh4 {[%clk 0:07:19.9]}
19... a5 {[%clk 0:05:01.6]} 20. Nf5 {[%clk 0:06:39.4]} 20... Bxf5 {[%clk
0:03:31]} 21. exf5 {[%clk 0:06:38]} 21... axb4 {[%clk 0:03:29.7]} 22. f6 {[%clk
0:05:59.3]} 22... g6 {[%clk 0:02:52.8]} 23. Qg4 {[%clk 0:05:48.3]} 23... Kh7
{[%clk 0:02:38.9]} 24. Bc2 {[%clk 0:04:49.6]} 24... Qc8 {[%clk 0:01:50.3]} 25.
Qh4 {[%clk 0:04:17.8]} 25... bxc3 {[%clk 0:01:43.7]} 26. Nxc3 {[%clk 0:03:49.5]}
26... Bb4 {[%clk 0:01:27.9]} 27. Rd3 {[%clk 0:03:19]} 27... Bxc3 {[%clk
0:01:27.6]} 28. Rxc3 {[%clk 0:03:19.6]} 28... Nd4 {[%clk 0:01:27.5]} 29. Bd3
{[%clk 0:03:09.9]} 29... Rxa2 {[%clk 0:01:25.1]} 30. Rfc1 {[%clk 0:03:04.9]}
30... c6 {[%clk 0:01:23.7]} 31. Rc5 {[%clk 0:02:57.3]} 31... Qe6 {[%clk
0:01:10.4]} 32. Re1 {[%clk 0:02:48.9]} 32... Ra4 {[%clk 0:00:54]} 33. Be4 {[%clk
0:01:16.5]} 33... Nf5 {[%clk 0:00:48.8]} 34. Bxf5 {[%clk 0:01:08.8]} 34... Qxf5
{[%clk 0:00:49.7]} 35. g4 {[%clk 0:01:06.1]} 35... Qf4 {[%clk 0:00:24.4]} 36.
Rcxe5 {[%clk 0:01:01.6]} 36... Ra1 {[%clk 0:00:18.4]} 37. Rxa1 {[%clk
0:00:43.5]} 37... Qxe5 {[%clk 0:00:19.2]} 38. Rc1 {[%clk 0:00:42]} 38... g5
{[%clk 0:00:19.2]} 39. Qh5 {[%clk 0:00:32.8]} 39... Qxf6 {[%clk 0:00:20]} 40. h4
{[%clk 0:00:32.3]} 40... Qg6 {[%clk 0:00:19.8]} 41. Qxg5 {[%clk 0:00:33]} 41...
hxg5 {[%clk 0:00:20.4]} 0-1

[Event "GrandPrix_30.05"]
[Site "Chess.com"]
[Date "2020.05.30"]
[Round "2"]
[White "DenLaz"]
[Black "Haykos"]
[Result "1/2-1/2"]
[WhiteElo "2611"]
[BlackElo "2223"]
[TimeControl "600+2"]
[EndTime "8:53:48 PDT"]
[Termination "Game drawn by repetition"]

1. d4 {[%clk 0:09:58.9]} 1... d5 {[%clk 0:08:25.8]} 2. c4 {[%clk 0:09:54.2]}
2... dxc4 {[%clk 0:08:25.8]} 3. Nf3 {[%clk 0:09:53.8]} 3... Nf6 {[%clk
0:08:26.5]} 4. e3 {[%clk 0:09:54.9]} 4... Bg4 {[%clk 0:08:26.2]} 5. Bxc4 {[%clk
0:09:55.4]} 5... e6 {[%clk 0:08:26.9]} 6. Nc3 {[%clk 0:09:51.2]} 6... Nbd7
{[%clk 0:08:25.2]} 7. O-O {[%clk 0:09:24.2]} 7... Bb4 {[%clk 0:08:23.1]} 8. Be2
{[%clk 0:09:11.1]} 8... O-O {[%clk 0:08:21.6]} 9. Bd2 {[%clk 0:08:58.8]} 9... c5
{[%clk 0:08:22.5]} 10. a3 {[%clk 0:08:52.5]} 10... Bxc3 {[%clk 0:07:57]} 11.
Bxc3 {[%clk 0:08:52.8]} 11... Ne4 {[%clk 0:07:55]} 12. Rc1 {[%clk 0:08:50]}
12... Rc8 {[%clk 0:07:43.4]} 13. dxc5 {[%clk 0:07:50.9]} 13... Nxc3 {[%clk
0:05:27.7]} 14. Rxc3 {[%clk 0:07:52.8]} 14... Rxc5 {[%clk 0:05:28.4]} 15. Qd4
{[%clk 0:07:33.1]} 15... Rxc3 {[%clk 0:05:24.7]} 16. bxc3 {[%clk 0:07:32.4]}
16... Nf6 {[%clk 0:02:15.8]} 17. Qxa7 {[%clk 0:07:29.8]} 17... Qc7 {[%clk
0:02:15.5]} 18. c4 {[%clk 0:07:19.1]} 18... Ne4 {[%clk 0:00:54.7]} 19. Qd4
{[%clk 0:07:08.9]} 19... Bxf3 {[%clk 0:00:55.3]} 20. Bxf3 {[%clk 0:07:05.4]}
20... Nc5 {[%clk 0:00:56.8]} 21. Rd1 {[%clk 0:06:54.7]} 21... g6 {[%clk
0:00:45.9]} 22. h4 {[%clk 0:06:52.9]} 22... h5 {[%clk 0:00:41.1]} 23. g3 {[%clk
0:06:34.8]} 23... Ra8 {[%clk 0:00:23.3]} 24. Qf6 {[%clk 0:06:29.8]} 24... Re8
{[%clk 0:00:19.5]} 25. Kg2 {[%clk 0:06:14]} 25... Rc8 {[%clk 0:00:18.8]} 26. Rd4
{[%clk 0:05:50.9]} 26... Nd7 {[%clk 0:00:14.4]} 27. Qe7 {[%clk 0:05:43.4]} 27...
Ne5 {[%clk 0:00:15]} 28. Qxc7 {[%clk 0:05:44.3]} 28... Rxc7 {[%clk 0:00:16.9]}
29. Be2 {[%clk 0:05:45.9]} 29... Kf8 {[%clk 0:00:14]} 30. f4 {[%clk 0:05:12.7]}
30... Nd7 {[%clk 0:00:14.3]} 31. Kf3 {[%clk 0:05:08.3]} 31... Ke7 {[%clk
0:00:15.6]} 32. Rd2 {[%clk 0:05:06.2]} 32... Nc5 {[%clk 0:00:13.8]} 33. e4
{[%clk 0:05:05.2]} 33... Rc6 {[%clk 0:00:10.1]} 34. Rc2 {[%clk 0:04:53.7]} 34...
Ra6 {[%clk 0:00:11.1]} 35. Rc3 {[%clk 0:04:54.8]} 35... Rb6 {[%clk 0:00:10.8]}
36. Ke3 {[%clk 0:04:39.6]} 36... Rb1 {[%clk 0:00:10.5]} 37. Kd4 {[%clk
0:04:22.2]} 37... Nb3+ {[%clk 0:00:11.4]} 38. Kd3 {[%clk 0:04:18.4]} 38... Nc5+
{[%clk 0:00:12.9]} 39. Kc2 {[%clk 0:04:19.8]} 39... Rg1 {[%clk 0:00:11.4]} 40.
e5 {[%clk 0:04:15.2]} 40... Ne4 {[%clk 0:00:08]} 41. Rb3 {[%clk 0:04:16.6]}
41... Kd8 {[%clk 0:00:06.1]} 42. Bf3 {[%clk 0:03:54.1]} 42... Nc5 {[%clk
0:00:06.7]} 43. Rb5 {[%clk 0:03:47.5]} 43... Rxg3 {[%clk 0:00:07.1]} 44. Bxb7
{[%clk 0:03:44.2]} 44... Kc7 {[%clk 0:00:08.5]} 45. Bh1 {[%clk 0:03:25.3]} 45...
Nd7 {[%clk 0:00:09.1]} 46. Rb7+ {[%clk 0:03:26.4]} 46... Kc8 {[%clk 0:00:08.6]}
47. Ra7 {[%clk 0:03:23.2]} 47... Rg4 {[%clk 0:00:07.2]} 48. Bc6 {[%clk
0:03:22.4]} 48... Nxe5 {[%clk 0:00:06.5]} 49. fxe5 {[%clk 0:03:07.5]} 49...
Rxc4+ {[%clk 0:00:07.3]} 50. Kd3 {[%clk 0:03:05.9]} 50... Rxc6 {[%clk
0:00:09.2]} 51. Rxf7 {[%clk 0:03:06.9]} 51... Ra6 {[%clk 0:00:08.3]} 52. Kd4
{[%clk 0:03:07.3]} 52... Rxa3 {[%clk 0:00:08.1]} 53. Kc5 {[%clk 0:03:07.7]}
53... Kd8 {[%clk 0:00:07.2]} 54. Rg7 {[%clk 0:03:07.1]} 54... Rd3 {[%clk
0:00:06.2]} 55. Rxg6 {[%clk 0:03:00.9]} 55... Rd5+ {[%clk 0:00:07.1]} 56. Kc4
{[%clk 0:03:02.5]} 56... Rxe5 {[%clk 0:00:08.3]} 57. Kd4 {[%clk 0:03:04.1]}
57... Rd5+ {[%clk 0:00:06.4]} 58. Ke4 {[%clk 0:03:04.7]} 58... Ke7 {[%clk
0:00:08.2]} 59. Rg8 {[%clk 0:02:48.4]} 59... Ra5 {[%clk 0:00:08.2]} 60. Kf4
{[%clk 0:02:45]} 60... Kf7 {[%clk 0:00:04.7]} 61. Rh8 {[%clk 0:02:41.5]} 61...
Kg7 {[%clk 0:00:04.6]} 62. Re8 {[%clk 0:02:40.8]} 62... Rf5+ {[%clk 0:00:03.3]}
63. Ke4 {[%clk 0:02:31.5]} 63... Kf7 {[%clk 0:00:05.2]} 64. Rh8 {[%clk
0:02:32.2]} 64... Ra5 {[%clk 0:00:05.9]} 65. Kf4 {[%clk 0:02:33]} 65... Kf6
{[%clk 0:00:03.6]} 66. Rh6+ {[%clk 0:02:31.5]} 66... Kf7 {[%clk 0:00:03.7]} 67.
Rh8 {[%clk 0:02:32.9]} 1/2-1/2

[Event "GrandPrix_30.05"]
[Site "Chess.com"]
[Date "2020.05.30"]
[Round "2"]
[White "Happy1712Drummer"]
[Black "Dolphin_2010"]
[Result "1-0"]
[WhiteElo "2218"]
[BlackElo "2038"]
[TimeControl "600+2"]
[EndTime "8:53:53 PDT"]
[Termination "Happy1712Drummer won by checkmate"]

1. Nf3 {[%clk 0:09:31.7]} 1... c6 {[%clk 0:10:01.9]} 2. e4 {[%clk 0:09:27.3]}
2... d5 {[%clk 0:10:03]} 3. Nc3 {[%clk 0:09:28.9]} 3... dxe4 {[%clk 0:10:03.3]}
4. Nxe4 {[%clk 0:09:29.3]} 4... Nf6 {[%clk 0:10:04.3]} 5. Qe2 {[%clk 0:09:29.1]}
5... Nxe4 {[%clk 0:10:03.3]} 6. Qxe4 {[%clk 0:09:29.8]} 6... Qd5 {[%clk
0:10:03.7]} 7. Qh4 {[%clk 0:09:28.5]} 7... Bf5 {[%clk 0:10:00.6]} 8. c4 {[%clk
0:09:15]} 8... Qe4+ {[%clk 0:09:16]} 9. Be2 {[%clk 0:09:11.5]} 9... e6 {[%clk
0:09:06.4]} 10. Qxe4 {[%clk 0:09:04.9]} 10... Bxe4 {[%clk 0:09:08.3]} 11. d3
{[%clk 0:09:06]} 11... Bb4+ {[%clk 0:09:03.5]} 12. Bd2 {[%clk 0:09:06.3]} 12...
Bxd2+ {[%clk 0:09:02.4]} 13. Kxd2 {[%clk 0:09:08.2]} 13... Bxf3 {[%clk
0:09:02.2]} 14. Bxf3 {[%clk 0:09:07.7]} 14... Ke7 {[%clk 0:09:03.1]} 15. d4
{[%clk 0:09:08.5]} 15... Rd8 {[%clk 0:09:04.3]} 16. Kc3 {[%clk 0:09:09.8]} 16...
a5 {[%clk 0:09:01.5]} 17. b3 {[%clk 0:09:05]} 17... Na6 {[%clk 0:08:54.4]} 18.
a3 {[%clk 0:09:05.6]} 18... Nc7 {[%clk 0:08:50.9]} 19. Rhe1 {[%clk 0:09:01.1]}
19... Kf8 {[%clk 0:08:47.3]} 20. h4 {[%clk 0:08:56.6]} 20... Rac8 {[%clk
0:08:43.1]} 21. Re5 {[%clk 0:08:51.9]} 21... Ra8 {[%clk 0:08:01.2]} 22. h5
{[%clk 0:08:36.4]} 22... h6 {[%clk 0:07:51.7]} 23. g4 {[%clk 0:08:34.3]} 23...
Ra6 {[%clk 0:07:44.2]} 24. a4 {[%clk 0:08:30.7]} 24... f6 {[%clk 0:07:21]} 25.
Rc5 {[%clk 0:07:43.5]} 25... e5 {[%clk 0:04:36.7]} 26. d5 {[%clk 0:07:40.7]}
26... Ke7 {[%clk 0:04:18.3]} 27. dxc6 {[%clk 0:07:32.2]} 27... b6 {[%clk
0:04:17.1]} 28. Rd5 {[%clk 0:07:31.2]} 28... Nxd5+ {[%clk 0:04:16.9]} 29. cxd5
{[%clk 0:07:32.1]} 29... Kd6 {[%clk 0:04:14.4]} 30. Kc4 {[%clk 0:07:33]} 30...
Ra7 {[%clk 0:04:06.8]} 31. Kb5 {[%clk 0:07:31.1]} 31... Kc7 {[%clk 0:03:48.5]}
32. Rd1 {[%clk 0:07:20.3]} 32... Rd6 {[%clk 0:03:44.5]} 33. Be4 {[%clk
0:07:20.7]} 33... Ra8 {[%clk 0:03:41.7]} 34. Bf5 {[%clk 0:07:17.3]} 34... Rad8
{[%clk 0:03:40.4]} 35. Bd7 {[%clk 0:06:07]} 35... Rg8 {[%clk 0:03:04.6]} 36. Kc4
{[%clk 0:05:41]} 36... Rb8 {[%clk 0:01:34.5]} 37. f3 {[%clk 0:05:38.7]} 37...
Kd8 {[%clk 0:01:29.3]} 38. Kb5 {[%clk 0:05:27.6]} 38... Kc7 {[%clk 0:01:27.5]}
39. Kc4 {[%clk 0:05:26.4]} 39... Kd8 {[%clk 0:01:26]} 40. Bf5 {[%clk 0:05:24.9]}
40... Kc7 {[%clk 0:01:24.7]} 41. Rb1 {[%clk 0:05:17.1]} 41... Rbd8 {[%clk
0:01:20.8]} 42. Be4 {[%clk 0:05:17.8]} 42... Rb8 {[%clk 0:01:21.3]} 43. Rf1
{[%clk 0:05:02.7]} 43... Re8 {[%clk 0:01:14.8]} 44. Bg6 {[%clk 0:04:51.6]} 44...
Red8 {[%clk 0:01:12.6]} 45. Be4 {[%clk 0:04:51.7]} 45... Re8 {[%clk 0:01:05.9]}
46. Ra1 {[%clk 0:04:53.6]} 46... Ra8 {[%clk 0:01:01.8]} 47. Kb5 {[%clk 0:04:52]}
47... Rad8 {[%clk 0:00:56.3]} 48. Kc4 {[%clk 0:04:49.1]} 48... Ra8 {[%clk
0:00:54]} 49. Rb1 {[%clk 0:04:47.4]} 49... Ra7 {[%clk 0:00:50.1]} 50. Rc1 {[%clk
0:04:37.5]} 50... Ra8 {[%clk 0:00:47]} 51. Rd1 {[%clk 0:04:37]} 51... Rad8
{[%clk 0:00:41.2]} 52. Kb5 {[%clk 0:04:36.1]} 52... Rxc6 {[%clk 0:00:37.7]} 53.
b4 {[%clk 0:04:29.3]} 53... axb4 {[%clk 0:00:32.8]} 54. Kxb4 {[%clk 0:04:29.5]}
54... Rc5 {[%clk 0:00:33.7]} 55. a5 {[%clk 0:04:21]} 55... Rxa5 {[%clk
0:00:25.8]} 56. Rc1+ {[%clk 0:04:21.6]} 56... Rc5 {[%clk 0:00:20.9]} 57. Ra1
{[%clk 0:04:12.3]} 57... Ra5 {[%clk 0:00:13.5]} 58. Rc1+ {[%clk 0:04:06.4]}
58... Kd7 {[%clk 0:00:11.1]} 59. Rc6 {[%clk 0:04:05.5]} 59... Rc5 {[%clk
0:00:04.9]} 60. Rxb6 {[%clk 0:04:05.1]} 60... Rc1 {[%clk 0:00:04.5]} 61. d6
{[%clk 0:03:58.7]} 61... Re8 {[%clk 0:00:02.4]} 62. Bf5+ {[%clk 0:03:54.8]}
62... Re6 {[%clk 0:00:03.2]} 63. Rb7+ {[%clk 0:03:52.4]} 63... Kc6 {[%clk
0:00:02.6]} 64. Rc7+ {[%clk 0:03:50.1]} 64... Kxd6 {[%clk 0:00:03]} 65. Rxc1
{[%clk 0:03:50.5]} 65... Re8 {[%clk 0:00:04.9]} 66. Rd1+ {[%clk 0:03:49.8]}
66... Ke7 {[%clk 0:00:06.8]} 67. Rd7+ {[%clk 0:03:50.1]} 67... Kf8 {[%clk
0:00:08.1]} 68. Rb7 {[%clk 0:03:46.8]} 68... Rd8 {[%clk 0:00:08.2]} 69. Be4
{[%clk 0:03:46.4]} 69... Rd4+ {[%clk 0:00:08.7]} 70. Kc5 {[%clk 0:03:46.9]}
70... Rd8 {[%clk 0:00:10.6]} 71. Kc6 {[%clk 0:03:46.3]} 71... Rd4 {[%clk
0:00:08.8]} 72. Rd7 {[%clk 0:03:44.9]} 72... Rc4+ {[%clk 0:00:08.9]} 73. Kd6
{[%clk 0:03:46.2]} 73... Rd4+ {[%clk 0:00:08.1]} 74. Ke6 {[%clk 0:03:47]} 74...
Rxd7 {[%clk 0:00:10]} 75. Kxd7 {[%clk 0:03:48]} 75... Kf7 {[%clk 0:00:11.9]} 76.
Bg6+ {[%clk 0:03:48]} 76... Kf8 {[%clk 0:00:13.8]} 77. Ke6 {[%clk 0:03:47]}
77... Kg8 {[%clk 0:00:11.8]} 78. Ke7 {[%clk 0:03:47.3]} 78... Kh8 {[%clk
0:00:13.7]} 79. Kf7 {[%clk 0:03:41.7]} 79... f5 {[%clk 0:00:13.7]} 80. Bxf5
{[%clk 0:03:38.6]} 80... e4 {[%clk 0:00:13.4]} 81. Bxe4 {[%clk 0:03:39.4]} 81...
g6 {[%clk 0:00:13.7]} 82. hxg6 {[%clk 0:03:40.4]} 82... h5 {[%clk 0:00:14.3]}
83. g7# {[%clk 0:03:41.6]} 1-0

[Event "GrandPrix_30.05"]
[Site "Chess.com"]
[Date "2020.05.30"]
[Round "2"]
[White "DanielDardha2005"]
[Black "Hakob-Hakobyan-Arm"]
[Result "0-1"]
[WhiteElo "2412"]
[BlackElo "2167"]
[TimeControl "600+2"]
[EndTime "8:53:54 PDT"]
[Termination "Hakob-Hakobyan-Arm won by checkmate"]

1. Nf3 {[%clk 0:10:01.9]} 1... d5 {[%clk 0:09:57.6]} 2. c4 {[%clk 0:10:02.5]}
2... c6 {[%clk 0:09:58.4]} 3. e3 {[%clk 0:10:01.5]} 3... Nf6 {[%clk 0:09:59.2]}
4. b3 {[%clk 0:10:01.9]} 4... g6 {[%clk 0:10:00.5]} 5. Bb2 {[%clk 0:10:02.9]}
5... Bg7 {[%clk 0:10:02.2]} 6. d4 {[%clk 0:10:04.1]} 6... O-O {[%clk 0:10:03.8]}
7. Be2 {[%clk 0:10:05.1]} 7... Bg4 {[%clk 0:10:05.3]} 8. Nc3 {[%clk 0:10:06.1]}
8... Nbd7 {[%clk 0:10:05.9]} 9. O-O {[%clk 0:10:07.2]} 9... e6 {[%clk
0:10:07.2]} 10. h3 {[%clk 0:10:00.8]} 10... Bxf3 {[%clk 0:10:08.1]} 11. Bxf3
{[%clk 0:10:02.4]} 11... Qe7 {[%clk 0:10:10]} 12. Rc1 {[%clk 0:09:58.9]} 12...
Rfe8 {[%clk 0:10:09.9]} 13. Qe2 {[%clk 0:09:50.3]} 13... Rad8 {[%clk 0:09:46]}
14. Rfd1 {[%clk 0:09:49.5]} 14... dxc4 {[%clk 0:08:31.7]} 15. bxc4 {[%clk
0:09:37]} 15... e5 {[%clk 0:08:32]} 16. Qc2 {[%clk 0:09:04.3]} 16... e4 {[%clk
0:07:57.1]} 17. Be2 {[%clk 0:09:04.4]} 17... c5 {[%clk 0:07:58.2]} 18. Bf1
{[%clk 0:08:42.7]} 18... cxd4 {[%clk 0:07:50.3]} 19. exd4 {[%clk 0:08:40.3]}
19... Bh6 {[%clk 0:06:48.3]} 20. Re1 {[%clk 0:07:56.6]} 20... Bxc1 {[%clk
0:06:45]} 21. Qxc1 {[%clk 0:07:56.6]} 21... Qd6 {[%clk 0:06:22.1]} 22. Ba1
{[%clk 0:07:27.3]} 22... a6 {[%clk 0:04:39.3]} 23. Nd1 {[%clk 0:06:45.2]} 23...
b5 {[%clk 0:04:24.1]} 24. cxb5 {[%clk 0:06:14.6]} 24... axb5 {[%clk 0:04:24.3]}
25. Bxb5 {[%clk 0:06:16.3]} 25... Nd5 {[%clk 0:04:21.9]} 26. Ne3 {[%clk
0:06:13.1]} 26... Nxe3 {[%clk 0:04:13.1]} 27. fxe3 {[%clk 0:05:35.9]} 27... Rb8
{[%clk 0:03:58.7]} 28. a4 {[%clk 0:05:20.7]} 28... Rec8 {[%clk 0:03:59.8]} 29.
Qb2 {[%clk 0:05:21.6]} 29... f6 {[%clk 0:03:42.2]} 30. Qb3+ {[%clk 0:05:00.2]}
30... Kg7 {[%clk 0:03:41.7]} 31. d5 {[%clk 0:05:01]} 31... Ne5 {[%clk
0:03:37.8]} 32. Rf1 {[%clk 0:04:57]} 32... Rd8 {[%clk 0:03:36.9]} 33. Qc2 {[%clk
0:04:41.1]} 33... Rbc8 {[%clk 0:03:22.4]} 34. Qxe4 {[%clk 0:04:37.7]} 34... Qxd5
{[%clk 0:03:23.9]} 35. Qf4 {[%clk 0:04:32.7]} 35... Rd6 {[%clk 0:03:22.7]} 36.
Bd4 {[%clk 0:04:27]} 36... Rc2 {[%clk 0:03:20.1]} 37. Qg3 {[%clk 0:04:06.5]}
37... h5 {[%clk 0:03:10.1]} 38. Rf2 {[%clk 0:03:26.1]} 38... Rxf2 {[%clk
0:03:05.9]} 39. Qxf2 {[%clk 0:03:27.2]} 39... Qe4 {[%clk 0:02:50]} 40. Qb2
{[%clk 0:03:17.1]} 40... Nc6 {[%clk 0:02:35.2]} 41. Bxc6 {[%clk 0:02:56.7]}
41... Qxc6 {[%clk 0:02:22.3]} 42. a5 {[%clk 0:02:56.9]} 42... Qd5 {[%clk
0:02:18.7]} 43. Qa3 {[%clk 0:02:41.5]} 43... Qc6 {[%clk 0:01:56.2]} 44. Kh2
{[%clk 0:02:40.7]} 44... h4 {[%clk 0:01:49.7]} 45. Qb4 {[%clk 0:02:31.1]} 45...
Qc7 {[%clk 0:01:42.1]} 46. Kh1 {[%clk 0:01:39.5]} 46... Rc6 {[%clk 0:01:43]} 47.
Bb2 {[%clk 0:01:40.5]} 47... Rc2 {[%clk 0:01:21.5]} 48. a6 {[%clk 0:01:29.9]}
48... Qc6 {[%clk 0:01:00.1]} 49. Qe7+ {[%clk 0:01:13.9]} 49... Kh6 {[%clk
0:01:01.2]} 50. e4 {[%clk 0:00:27.8]} 50... Rxb2 {[%clk 0:01:00]} 51. a7 {[%clk
0:00:28.9]} 51... Qc1+ {[%clk 0:01:00.9]} 52. Kh2 {[%clk 0:00:30.3]} 52... Qf4+
{[%clk 0:01:02.8]} 53. Kg1 {[%clk 0:00:31.9]} 53... Rb1# {[%clk 0:01:04.3]} 0-1

[Event "GrandPrix_30.05"]
[Site "Chess.com"]
[Date "2020.05.30"]
[Round "2"]
[White "dosto07"]
[Black "Bengalas"]
[Result "0-1"]
[WhiteElo "1832"]
[BlackElo "2187"]
[TimeControl "600+2"]
[EndTime "8:53:55 PDT"]
[Termination "Bengalas won by resignation"]

1. e4 {[%clk 0:09:53.4]} 1... c5 {[%clk 0:10:00.9]} 2. Nf3 {[%clk 0:09:44.2]}
2... e6 {[%clk 0:10:01.6]} 3. c3 {[%clk 0:09:43.1]} 3... Nf6 {[%clk 0:10:01.9]}
4. e5 {[%clk 0:09:42.9]} 4... Nd5 {[%clk 0:10:03]} 5. Bc4 {[%clk 0:09:43.6]}
5... d6 {[%clk 0:09:58.5]} 6. exd6 {[%clk 0:08:40]} 6... Bxd6 {[%clk 0:09:58.8]}
7. O-O {[%clk 0:08:39.9]} 7... O-O {[%clk 0:09:57.2]} 8. d4 {[%clk 0:08:40.7]}
8... Nc6 {[%clk 0:09:31.1]} 9. Re1 {[%clk 0:08:33.9]} 9... cxd4 {[%clk 0:08:42]}
10. cxd4 {[%clk 0:08:29]} 10... Nce7 {[%clk 0:08:10.8]} 11. Nc3 {[%clk
0:08:25.8]} 11... Bd7 {[%clk 0:07:12.1]} 12. Bb3 {[%clk 0:08:19.5]} 12... Rc8
{[%clk 0:06:52.4]} 13. Ne4 {[%clk 0:07:42.1]} 13... Bb4 {[%clk 0:06:52]} 14. Bd2
{[%clk 0:07:14.6]} 14... Bxd2 {[%clk 0:06:51.6]} 15. Qxd2 {[%clk 0:07:10.9]}
15... Bc6 {[%clk 0:06:53.2]} 16. Ne5 {[%clk 0:06:57.6]} 16... Nf5 {[%clk
0:06:29.2]} 17. Rac1 {[%clk 0:06:37.3]} 17... Nf6 {[%clk 0:03:42.7]} 18. Nxf6+
{[%clk 0:05:48.1]} 18... Qxf6 {[%clk 0:03:41.4]} 19. Nxc6 {[%clk 0:05:47.3]}
19... bxc6 {[%clk 0:03:06.6]} 20. Rc4 {[%clk 0:04:57.9]} 20... Rfd8 {[%clk
0:03:04.7]} 21. Qa5 {[%clk 0:04:46.2]} 21... Nxd4 {[%clk 0:01:27.4]} 22. Qxa7
{[%clk 0:04:32.6]} 22... Nxb3 {[%clk 0:01:28]} 23. axb3 {[%clk 0:04:33.4]} 23...
Qxb2 {[%clk 0:01:29]} 24. Qb7 {[%clk 0:04:08.6]} 24... Rb8 {[%clk 0:01:01.4]}
25. Qxc6 {[%clk 0:04:03.9]} 25... Qxb3 {[%clk 0:01:02.4]} 26. g3 {[%clk
0:03:56]} 26... Qb7 {[%clk 0:00:46.8]} 27. Qxb7 {[%clk 0:03:32.7]} 27... Rxb7
{[%clk 0:00:47.7]} 28. Re2 {[%clk 0:03:34.6]} 28... g6 {[%clk 0:00:40.2]} 29. h4
{[%clk 0:03:34.6]} 29... Kg7 {[%clk 0:00:39.7]} 30. Kg2 {[%clk 0:03:35.4]} 30...
Rd3 {[%clk 0:00:37.9]} 31. Rc5 {[%clk 0:03:35.2]} 31... h6 {[%clk 0:00:37.5]}
32. Rce5 {[%clk 0:03:31.3]} 32... Rbd7 {[%clk 0:00:38.2]} 33. R5e4 {[%clk
0:03:30.8]} 33... Kf6 {[%clk 0:00:35.9]} 34. Rf4+ {[%clk 0:03:30.8]} 34... Ke7
{[%clk 0:00:37]} 35. Rfe4 {[%clk 0:03:27.2]} 35... Rd2 {[%clk 0:00:37.1]} 36.
Kf3 {[%clk 0:03:19]} 36... R7d3+ {[%clk 0:00:34.7]} 37. Kg2 {[%clk 0:03:19.3]}
37... Rxe2 {[%clk 0:00:34.3]} 38. Rxe2 {[%clk 0:03:19.5]} 38... Kf6 {[%clk
0:00:31.6]} 39. Ra2 {[%clk 0:03:15.4]} 39... g5 {[%clk 0:00:29.1]} 40. hxg5+
{[%clk 0:03:15.1]} 40... hxg5 {[%clk 0:00:31]} 41. Ra4 {[%clk 0:03:08.8]} 41...
Ke5 {[%clk 0:00:21.4]} 42. Kf1 {[%clk 0:03:06.2]} 42... f5 {[%clk 0:00:18]} 43.
Ke2 {[%clk 0:03:05.5]} 43... Rb3 {[%clk 0:00:18.6]} 44. Ra5+ {[%clk 0:03:03.8]}
44... Kf6 {[%clk 0:00:19.1]} 45. Ra8 {[%clk 0:03:03.1]} 45... Rb2+ {[%clk
0:00:18]} 46. Kf3 {[%clk 0:03:03.4]} 46... g4+ {[%clk 0:00:18.1]} 47. Ke3 {[%clk
0:02:48.9]} 47... Rb3+ {[%clk 0:00:18.8]} 48. Ke2 {[%clk 0:02:49.4]} 48... Rb5
{[%clk 0:00:15.1]} 49. Ra7 {[%clk 0:02:47.4]} 49... Ke5 {[%clk 0:00:15.4]} 50.
Ra8 {[%clk 0:02:47.4]} 50... Rb2+ {[%clk 0:00:15.8]} 51. Ke3 {[%clk 0:02:45.4]}
51... Rb3+ {[%clk 0:00:17.1]} 52. Ke2 {[%clk 0:02:46.2]} 52... Rb4 {[%clk
0:00:17.5]} 53. Ra7 {[%clk 0:02:43.3]} 53... Ke4 {[%clk 0:00:17.6]} 54. Re7
{[%clk 0:02:33.4]} 54... e5 {[%clk 0:00:18.5]} 55. Rg7 {[%clk 0:02:28.6]} 55...
Rb2+ {[%clk 0:00:18.8]} 56. Ke1 {[%clk 0:02:14.7]} 56... Kf3 {[%clk 0:00:19.8]}
57. Rc7 {[%clk 0:02:14.3]} 57... Rb1+ {[%clk 0:00:07.4]} 58. Kd2 {[%clk
0:02:12.7]} 58... Kxf2 {[%clk 0:00:06.7]} 59. Rc5 {[%clk 0:02:09]} 59... f4
{[%clk 0:00:04.9]} 60. Rxe5 {[%clk 0:02:06.9]} 60... Kxg3 {[%clk 0:00:05.5]} 61.
Ke2 {[%clk 0:02:03.2]} 61... f3+ {[%clk 0:00:05]} 62. Ke3 {[%clk 0:02:02.1]}
62... Re1+ {[%clk 0:00:05.8]} 63. Kd4 {[%clk 0:02:02.8]} 63... Rxe5 {[%clk
0:00:07.7]} 64. Kxe5 {[%clk 0:02:03.9]} 64... f2 {[%clk 0:00:09.3]} 0-1